Cogmind - Beta 13 @@@ ROGUE MODE // 2024.06.10 @ 16:27:26 Player: lt_nd Result: Self-destructed Performance ------------- Evolutions (1) 500 Regions Visited (2) 400 Robots Destroyed (32) 160 Value Destroyed (723) 723 Prototype IDs (0) 0 Alien Tech Used (0) 0 Bonus (0) 0 TOTAL SCORE: 1783 Bonus ------- None Cogmind --------- Core Integrity 363/400 Matter 228/300 Energy 100/100 System Corruption 0% Temperature Cool (9) Movement Walking (120) Location -9/Materials Parts ------- > --- POWER (1) -------- (None) > --- PROPULSION (3) --- Carbon-fiber Leg Carbon-fiber Leg Carbon-fiber Leg > --- UTILITY (3) ------ Small Storage Unit Light Armor Plating > --- WEAPON (2) ------- Assault Rifle Light Assault Rifle > --- INVENTORY (8) ---- Aluminum Leg Aluminum Leg Aluminum Leg VTOL Module Improved Terrain Scanner Small Laser Small Laser Grenade Launcher Peak State ------------ > --- POWER ------------ (None) > --- PROPULSION ------- Carbon-fiber Leg Carbon-fiber Leg Carbon-fiber Leg > --- UTILITY ---------- Heat Sink Small Storage Unit Light Armor Plating > --- WEAPON ----------- Assault Rifle Light Assault Rifle > --- INVENTORY -------- Armored Treads Aluminum Leg Aluminum Leg Aluminum Leg Improved Terrain Scanner Small Laser Small Laser Grenade Launcher [Rating: 15] Favorites ----------- Power Ion Engine Engine Ion Engine Propulsion Aluminum Leg Treads Armored Treads Leg Aluminum Leg Utility Small Storage Unit Device Improved Terrain Scanner Storage Small Storage Unit Protection Light Armor Plating Weapon EM Pulse Gun Energy Gun EM Pulse Gun Ballistic Gun Assault Rifle Ballistic Cannon Light Cannon Launcher Grenade Launcher Special Weapon Mining Laser Special Melee Weapon Datajack Build | -11 -10 -9 ------- Run | Yrd Mat Mat Slots Evolved 2 | . . 2 Power . | . . . Propulsion 1 | . . 1 Utility 1 | . . 1 Weapon . | . . . Parts Attached 39 | 7 21 11 Power 3 | 1 2 . Engine 3 | 1 2 . Core . | . . . Reactor . | . . . Propulsion 13 | 2 4 7 Treads 3 | . . 3 Leg 10 | 2 4 4 Wheel . | . . . Hover . | . . . Flight . | . . . Utility 6 | 2 2 2 Device 4 | 1 2 1 Storage 1 | 1 . . Processor . | . . . Hackware . | . . . Protection 1 | . . 1 Artifact . | . . . Weapon 17 | 2 13 2 Energy Gun 6 | 2 4 . Energy Cannon . | . . . Ballistic Gun 5 | . 3 2 Ballistic Cannon 2 | . 2 . Launcher 2 | . 2 . Special Weapon 1 | . 1 . Impact Weapon . | . . . Slashing Weapon . | . . . Piercing Weapon . | . . . Special Melee Weapon 1 | . 1 . Unidentified Prototypes . | . . . Parts Lost 7 | . 4 3 Power 2 | . 1 1 Propulsion 1 | . 1 . Utility 3 | . 1 2 Weapon 1 | . 1 . Highest Loss Streak 4 | . 4 2 To Critical Strikes . | . . . Average Slot Usage (%) 94 | . 97 86 Engine 10 | . 13 3 Treads 1 | . . 4 Leg 27 | . 27 27 Device 13 | . 13 12 Storage 13 | . 14 11 Protection 1 | . . 6 Energy Gun 9 | . 10 4 Ballistic Gun 7 | . 3 17 Ballistic Cannon 6 | . 8 . Special Weapon 2 | . 2 . Naked Turns . | . . . Heaviest Build 16 | 15 16 13 Greatest Support 60 | 20 20 60 Greatest Overweight (x) 4 | 4 1 3 Average Overweight (x) . | . . . Largest Inventory Capacity 8 | 8 8 8 Average Capacity 7 | 7 8 8 Most Carried 8 | 6 8 8 Average Carried 6 | 5 7 7 Final Capacity 8 | 8 8 8 Final Carried 8 | 6 8 8 Class Distribution -------------------- 91% | Mutant 8% | Scavenger-Mutant Dominant Class ---------------- Mutant | -10/Materials Mutant | -9/Materials Resources | -11 -10 -9 ----------- Run | Yrd Mat Mat Matter Collected 724 | 270 386 68 Remotely . | . . . Salvage Created 1037 | 267 702 68 Parts 66 | 27 38 1 Haulers Intercepted 1 | . 1 . Recyclers Shooed 5 | 1 1 3 Parts Field Recycled . | . . . Retrieved Matter . | . . . Parts Self-Destructed . | . . . Prevented . | . . . Kills | -11 -10 -9 ------- Run | Yrd Mat Mat Combat Hostiles Destroyed 15 | . 13 2 Guns 10 | . 8 2 Cannons 4 | . 4 . AOE 1 | . 1 . Classes Destroyed 8 | 3 4 1 Worker 4 | 3 1 . Builder 1 | . 1 . Tunneler 6 | 6 . . Hauler 1 | . 1 . Recycler 3 | 1 2 . Watcher 2 | . 2 . Grunt 14 | . 13 1 Sentry 1 | . . 1 Best Kill Streak 4 | 4 3 1 Combat Bots Only 2 | . 2 1 Max Kills in Single Turn 1 | 1 1 1 Gunslinging . | . . . Exploded 1 | . 1 . Melee . | . . . Uniques/NPCs Destroyed . | . . . Combat | -11 -10 -9 -------- Run | Yrd Mat Mat Hostile Shots Fired 114 | . 79 35 Missed 19 | . 15 4 Damage Taken 1317 | 25 885 407 Core 200 | 25 138 37 Absorbed by Shields . | . . . Core Remaining (%) 62 | 90 34 . Volleys Fired 132 | 15 93 24 Largest 2 | 2 2 2 Hottest 120 | 80 120 60 Shots Fired 216 | 30 139 47 Gun 174 | 30 97 47 Cannon 29 | . 29 . Launcher 1 | . 1 . Special 12 | . 12 . Kinetic 96 | . 57 39 Thermal 75 | . 67 8 Explosive 1 | . 1 . Electromagnetic 44 | 30 14 . Robot Hit Streak 10 | 6 10 8 Robot Miss Streak 4 | 3 4 3 Penetration Max . | . . . Secondary Targets . | . . . Shots Hit Robots 141 | 15 96 30 Core Hits 54 | 11 37 6 Critical Kills . | . . . Critical Parts Destroyed . | . . . Critical Strikes 1 | . 1 . Corrupt 1 | . 1 . Melee Attacks 2 | . 2 . Impact . | . . . Slashing . | . . . Piercing . | . . . Sneak Attacks 2 | . 2 . Combat Hostiles . | . . . Follow-up Attacks . | . . . Damage Inflicted 1971 | 229 1398 344 Guns 1334 | 206 811 317 Cannons 344 | . 344 . Explosions 146 | 23 123 . Melee . | . . . Ramming 27 | . . 27 Kinetic 890 | . 617 273 Thermal 580 | 23 513 44 Explosive 123 | . 123 . Electromagnetic 351 | 206 145 . Impact . | . . . Slashing . | . . . Piercing . | . . . Highest Corruption . | . . . Average Corruption . | . . . Corruption Purged . | . . . Corruption Blocked . | . . . Overload Shots . | . . . Overflow Damage 6 | . 6 . Projectiles . | . . . Explosions 6 | . 6 . Melee . | . . . Knockbacks 3 | . 3 . Impact . | . . . Kinetic 3 | . 3 . Secondary . | . . . Self-Inflicted Damage 112 | 25 87 . Shots 3 | 1 2 . Rammed . | . . . Targets Rammed 12 | . . 12 Kicked 12 | . . 12 Crushed . | . . . Highest Temperature 169 | 66 169 1 Average Temperature 47 | 21 54 1 Received Heat Transfer 588 | . 441 147 Siege Activations . | . . . Robots Corrupted . | . . . Combat Hostiles . | . . . Parts Fried 1 | 1 . . Impact Corruptions . | . . . Robots Melted . | . . . Combat Hostiles . | . . . Parts Melted . | . . . Heat Transferred 1250 | . 1150 100 Parts Sabotaged . | . . . Parts Stolen . | . . . Parts Stripped . | . . . Power Chain Reactions 1 | 1 . . Alert | -11 -10 -9 ------- Run | Yrd Mat Mat Peak Influence 212 | 25 212 149 Initial 89 | . 16 89 Average 50 | 8 79 115 Maximum Alert Level 1 | . 1 . Low Security (%) 96 | 100 90 100 Level 1 3 | . 9 . Level 2 . | . . . Level 3 . | . . . Level 4 . | . . . Level 5 . | . . . High Security . | . . . Max Security . | . . . Squads Dispatched 5 | . 4 1 Investigation . | . . . Extermination . | . . . Reinforcement 5 | . 4 1 Assault . | . . . Garrison . | . . . Intercept . | . . . Searches Triggered . | . . . Construction Impeded . | . . . Haulers Reinforced . | . . . Active Scanning Responses . | . . . Cargo Convoy Interrupts . | . . . Stealth | -11 -10 -9 --------- Run | Yrd Mat Mat Distress Signals 7 | . 5 2 Communications Jammed . | . . . Distress Signals . | . . . Times Spotted 32 | . 26 6 Peak Tracking Total 3 | . 3 2 Tactical Retreats 2 | . 2 . Traps | -11 -10 -9 ------- Run | Yrd Mat Mat Traps Triggered 1 | . 1 . Indirectly . | . . . Trap Hack Attempts . | . . . Triggered . | . . . Disarmed . | . . . Reprogrammed . | . . . Reused . | . . . Traps Extracted . | . . . Installed . | . . . Triggered . | . . . Machines | -11 -10 -9 ---------- Run | Yrd Mat Mat Machines Disabled 6 | . 6 . Max in Single Turn 4 | . 4 . Machines Repaired . | . . . Machines Dismantled . | . . . Machines Sabotaged . | . . . Overloaded Fab Kills . | . . . Hacking | -11 -10 -9 --------- Run | Yrd Mat Mat Machines Accessed . | . . . Terminals . | . . . Fabricators . | . . . Repair Stations . | . . . Recycling Units . | . . . Scanalyzers . | . . . Garrison Access . | . . . Total Hacks . | . . . Successful . | . . . Failed . | . . . Catastrophic . | . . . Database Lockouts . | . . . Manual . | . . . Terminals . | . . . Fabricators . | . . . Repair Stations . | . . . Recycling Units . | . . . Scanalyzers . | . . . Garrison Access . | . . . Terminal Hacks . | . . . Fabricator Hacks . | . . . Repair Station Hacks . | . . . Recycling Unit Hacks . | . . . Scanalyzer . | . . . Garrison Access Hacks . | . . . Unauthorized Hacks . | . . . Terminals . | . . . Fabricators . | . . . Repair Stations . | . . . Recycling Units . | . . . Scanalyzers . | . . . Garrison Access . | . . . Data Cores Recovered . | . . . Used . | . . . Hacking Detections . | . . . Full Trace Events . | . . . Feedback Events . | . . . Feedback Blocked . | . . . Robot Schematics Acquired . | . . . Robots Built . | . . . Authchips . | . . . Time . | . . . Total Robot Build Rating . | . . . Part Schematics Acquired . | . . . Parts Built . | . . . Authchips . | . . . Time . | . . . Total Part Build Rating . | . . . Parts Repaired . | . . . Time . | . . . Parts Recycled . | . . . Recycled Matter . | . . . Retrieved Matter . | . . . Retrieved Components . | . . . Parts Scanalyzed . | . . . Part Schematics Acquired . | . . . Parts Damaged . | . . . Bothacking | -11 -10 -9 ------------ Run | Yrd Mat Mat Used RIF Installer . | . . . Robots Hacked 1 | . 1 . Non-combat 1 | . 1 . Combat . | . . . Robot Hacks Applied 1 | . 1 . parse_system 1 | . 1 . Relay Couplers Released . | . . . Fabnet Peak Effective % . | . . . Robots Rewired . | . . . Allies Hacked . | . . . Hacks Repelled . | . . . Allies | -11 -10 -9 -------- Run | Yrd Mat Mat Total Allies . | . . . Largest Group . | . . . Highest-Rated Group . | . . . Highest-Rated Ally . | . . . Total Orders . | . . . Ally Attacks . | . . . Total Damage . | . . . Kills . | . . . Allies Corrupted . | . . . Allies Melted . | . . . Intel | -11 -10 -9 ------- Run | Yrd Mat Mat Robot Analysis Total . | . . . Derelict Logs Recovered . | . . . Drone Launches . | . . . Drone Recoveries . | . . . Exploration | -11 -10 -9 ------------- Run | Yrd Mat Mat Turns Passed 3233 | 1534 1300 399 Spaces Moved 1040 | 227 648 165 Core 12 | 11 . 1 Treads 25 | . . 25 Legs 1003 | 216 648 139 Wheels . | . . . Hover . | . . . Flight . | . . . Fastest Speed 50 | 50 120 120 Average Speed 121 | 121 120 128 Slowest Speed 250 | 250 190 200 Overloaded Moves . | . . . Propulsion Burnouts . | . . . Robots Hopped . | . . . Cave-ins Triggered . | . . . Exploration Rate (%) 37 | 21 78 13 Regions Visited 2 Branch Regions . Pre-discovered Areas . | . . . Known Exits Taken . | . . . Unknown Exits Taken 2 | 1 1 . Scrap Searched . | . . . Spaces Dug 2 | . 2 . Terrain Destroyed 41 | 4 37 . Melee . | . . . Projectile 3 | . 3 . AOE 38 | 4 34 . Terrain Rammed . | . . . Walls Destroyed . | . . . Machines Disabled . | . . . Actions | -11 -10 -9 --------- Run | Yrd Mat Mat Total 2767 | 1451 1009 307 Wait 1496 | 1197 214 85 Move 1038 | 226 647 165 Hop . | . . . Pick Up 19 | 6 12 1 Fast Attach 27 | 7 12 8 Attach 8 | . 5 3 Detach 6 | . 3 3 Swap 4 | . 4 . Drop 23 | . 17 6 Fire 132 | 15 93 24 Melee 2 | . 2 . Ram . | . . . Kick 12 | . . 12 Crush . | . . . Escape Stasis . | . . . Rewire . | . . . Trap . | . . . Miscellaneous . | . . . Route ------- -11/Scrapyard -10/Materials (discovered 4 exits: [*Mat x2] / [*Min x2]) -9/Materials (discovered 2 exits: [*Min] / [*Sto]) History --------- Turn | Location | Event 26 | -11/Scrapyard | Discovered new exit (range 16) 1535 | -11/Scrapyard | Entered Materials 1536 | -10/Materials | Build established: Mutant 2132 | -10/Materials | Discovered new exit (range 13) 2548 | -10/Materials | Discovered new exit (range 9) 2558 | -10/Materials | Discovered new exit (range 15) 2733 | -10/Materials | Core integrity fell below 50% 2807 | -10/Materials | Lost 4 parts (1p1n1u1w) 2824 | -10/Materials | Discovered new exit (range 10) 2835 | -10/Materials | Entered another Materials area 2835 | -9/Materials | Evolved 2 slots: Propulsion x1, Utility x1 2864 | -9/Materials | Discovered new exit (range 16) 3233 | -9/Materials | Discovered new exit (range 5) 3234 | -9/Materials | Self-destructed Last Messages --------------- wheel, '.', or KP5. Also make sure your per-turn energy generation is a net positive, and consider deactivating power-draining parts if not. Acquired Carbon-fiber Leg. O-16 Technician: "IFF HANDSHAKE FAILED. SECURING TERMINAL." ALERT: Hostiles spotted, dispatching reinforcements to Terminal M007. Dropped Arm. Treads. Acquired VTOL Module. R-06 Scavenger sends out distress signal. Heat Sink destroyed. Kicked G-34 Mercenary. Kicked G-34 Mercenary out of the way. Kicked G-34 Mercenary. G-34 Mercenary destroyed. Acquired 20 matter. Kicked R-06 Scavenger. EXIT=FOUND Map ----- +----------------------------------------------------+ | ???????????????????????????????????????????????### | | ???????????????????????????????????????????????# | | ???????????????????????????????????????????????# " | | ???????????????????????????????????????????????# T | | ???????????????????????????????????????????????# " | | ???????????????????????????????????????????????# | | ???????????????????????????????????????????????# " | | ???????????????????????????????????????????????# " | | ???????????????????????????????????????????????# " | | ???????????????????????????????????????????????# | | ???????????????????????????????????????????????### | | ?????????????????????????????????????????????????? | | ?????????????????????????????????????????????????? | | ?????????????????????????????????????????????????? | | ?????????????????????????????????????????????????? | | ?????????????????????????????????????????# ??????? | | ?????????????????????????????????????????# ####+ | | ?????????????????????????????????????????# | | ????????????????????????###??????????????# | | ???????????????????????? ??????????????# | | ???????????????????????? Y ??????????????######### | | ???????????????????????? ??????????????????????? | | ????????????????????????# #??????????????????????? | | ????????????????????????# #??????????????????????? | | ????????????????????????# #???#####??????????????? | | ????????????????????????#@##### #??????????????? | | ????????????????????????# #??????????????? | | ????????????????????????#+##+## #??????????????? | | ?????????????????????????? ## ##??????????????# | | ???????????????????????? ## #???????????????# | | ???????????????????????# """ ## #???????????????# | | ???????????????????????# """ ## #???????????????# | | ???????????????????????# """ ## #???????????????# | | ???????????????????????# ## #???????????????# | | ???????????????????????######### #???#######?????? | | ????????????????????????# ! + #???# ####### | | ????????????????????????# # ##### | | ????????????????????????# """ # | | ????????????????????????# """ =####+## | | ????????????????????????# """ ## # #### | | ????????????????????????# ## ###+###??# | | ????????????????????????######### #? ????#[[! | | ????????????????????????????????# #?% ????#[[! | | ????????????????????????????????# ## ???#### | | ????????????????????????????????# ## ??????? | | ????????????????????????????????# ## #?????? | | ?????????????????????????????????####??####??????? | | | | | | | +----------------------------------------------------+ Best States ------------- Heat Dissipation 38 Energy Generation 10 Energy Capacity 250 Matter Stores 300 Matter Capacity 300 Sight Range 16 Robot Scan Range 14 Terrain Scan Range 16 Terrain Scan Density 10 Armor Coverage 150 Evasion (%) 55 Recoil Reduction 3 Item Schematics ----------------- None Robot Schematics ------------------ None Fabricated ------------ Nothing Alien Tech Used ----------------- None Achievements -------------- None Challenges ------------ None Game ------ Seed HellfireSiegeProtection Manual? 0 Play Time 00:29:06 Cumulative 1.6 hours Start 2024.06.10 @ 16:02:57 End 2024.06.10 @ 16:27:26 Sessions 1 Manual Loads 0 Difficulty Rogue Special Mode None Game No. 3 Rogue 3 Adventurer 0 Explorer 0 Win Type - Total 0 Types 0/0/0/0/0/0/0/0/0 Lore% 1 Gallery% 4 Achievement% 4 Wizard Run 0 Options --------- Layout 1 ASCII 0 Keyboard 1 Movement Numpad Keybinds 0 Fullscreen 1 Font 24/Smallcaps Map View 50x35 Zoom Use 0% Tactical HUD 0 Map Filters NONE Filters NONE Steam 1 RUN: 16afe7c6-41cf-40f0-aaba-91da674caa60